fUST/lending_fUST_20250423
["ID","MTS","AMOUNT","RATE_DAILY","PERIOD"]
[358681907,1745365832995,-224.467695,0.00020828,2]
[358681908,1745365833006,-517.14443783,0.00021663,2]
[358681909,1745365833016,-174.67713093,0.00021773,2]
[358681910,1745365833026,-176.87,0.00021804,3]
[358681911,1745365833036,-530.61,0.00021804,3]
[358681912,1745365833045,-300.0,0.00021806,2]
[358681913,1745365833056,-300.0,0.00021806,2]
[358681914,1745365833066,-8032.98581624,0.00021807,2]
[358681915,1745365833078,-11676.56491407,0.00021807,2]
[358681922,1745365838784,-500.0,0.00021806,2]
[358681924,1745365838794,-243.28928482,0.00021806,2]
[358681926,1745365838803,-500.0,0.00021806,2]
[358681928,1745365838813,-500.0,0.00021806,2]
[358681930,1745365838823,-65.65071518,0.00021806,2]
[358681931,1745365839051,-153.95764881,0.00021806,2]
[358681932,1745365839062,-500.0,0.00021806,2]
[358681933,1745365839072,-486.02636907,0.00021806,2]
[358681934,1745365839082,-500.0,0.00021806,2]
[358681935,1745365839091,-513.95001371,0.00021806,2]
[358681936,1745365839101,-500.0,0.00021806,2]
[358681937,1745365839110,-500.0,0.00021806,2]
[358681938,1745365839120,-434.06596841,0.00021806,2]
[358681958,1745365841138,-65.93403159,0.00021806,2]
[358681959,1745365841148,-500.0,0.00021806,2]
[358681960,1745365841158,-500.0,0.00021806,2]
[358681961,1745365841168,-500.0,0.00021806,2]
[358681962,1745365841178,-500.0,0.00021806,2]
[358681963,1745365841187,-500.0,0.00021806,2]
[358681964,1745365841197,-500.0,0.00021806,2]
[358681965,1745365841207,-500.0,0.00021806,2]
[358681966,1745365841216,-500.0,0.00021806,2]
[358681967,1745365841229,-500.0,0.00021806,2]
[358681968,1745365841238,-500.0,0.00021806,2]
[358681969,1745365841249,-500.0,0.00021806,2]
[358681970,1745365841259,-500.0,0.00021806,2]
[358681971,1745365841269,-500.0,0.00021806,2]
[358681972,1745365841279,-500.0,0.00021806,2]
[358681973,1745365841288,-500.0,0.00021806,2]
[358681974,1745365841298,-500.0,0.00021806,2]
[358681976,1745365841307,-500.0,0.00021806,2]
[358681977,1745365841317,-500.0,0.00021806,2]
[358681978,1745365841327,-500.0,0.00021806,2]
[358681979,1745365841337,-500.0,0.00021806,2]
[358681980,1745365841346,-500.0,0.00021806,2]
[358681981,1745365841356,-500.0,0.00021806,2]
[358681983,1745365841365,-500.0,0.00021806,2]
[358681984,1745365841375,-500.0,0.00021806,2]
[358681985,1745365841384,-241.58861692,0.00021806,2]
[358681987,1745365841394,-500.0,0.00021806,2]
[358681988,1745365841403,-500.0,0.00021806,2]
[358681989,1745365841414,-500.0,0.00021806,2]
[358681990,1745365841425,-500.0,0.00021806,2]
[358681991,1745365841435,-500.0,0.00021806,2]
[358681992,1745365841445,-500.0,0.00021806,2]
[358681993,1745365841455,-500.0,0.00021806,2]
[358681994,1745365841465,-15543.54379169,0.00021807,2]
[358681995,1745365841480,-500.0,0.00021813,2]
[358681996,1745365841489,-624.28995066,0.00021813,2]
[358681997,1745365841499,-220.47810114,0.00021813,2]
[358681998,1745365841509,-88366.84868996,0.00021814,2]
[358681999,1745365841521,-2180.20519444,0.00021814,2]
[358682002,1745365843789,-1676.31242075,0.00021707,2]
[358682004,1745365843937,-353.11482556,0.00021814,2]
[358682005,1745365846735,-58538.6965686,0.00021814,2]
[358682006,1745365846796,-1910.87685476,0.00021814,2]
[358684499,1745367031955,-317.80668087,0.0002071,2]
[358684603,1745367038465,-182.19331913,0.0002071,2]
[358684604,1745367038476,-224.4676963,0.00020751,2]
[358684606,1745367038486,-698.36487664,0.00021613,2]
[358684607,1745367038499,-930.2970423,0.00021613,2]
[358684608,1745367038510,-176.87,0.00021704,3]
[358684609,1745367038519,-530.61,0.00021704,3]
[358684610,1745367038530,-1000.0,0.00021704,2]
[358684611,1745367038542,-500.0,0.00021712,2]
[358684613,1745367038553,-168.21189041,0.00021712,2]
[358684614,1745367038563,-613.56109532,0.00021712,2]
[358684615,1745367038575,-613.56109532,0.00021712,2]
[358684616,1745367038585,-613.56109532,0.00021712,2]
[358684617,1745367038596,-613.56109532,0.00021712,2]
[358684620,1745367038606,-613.56109532,0.00021712,2]
[358684621,1745367038616,-286.25266495,0.00021712,2]
[358684622,1745367038630,-327.30843037,0.00021712,2]
[358684623,1745367038639,-411.99716856,0.00021712,2]
[358684624,1745367038652,-201.56392676,0.00021712,2]
[358684625,1745367038662,-613.56109532,0.00021712,2]
[358684627,1745367038672,-613.56109532,0.00021712,2]
[358684628,1745367038682,-613.56109532,0.00021712,2]
[358684629,1745367038692,-613.56109532,0.00021712,2]
[358684630,1745367038703,-344.19169196,0.00021712,2]
[358684687,1745367040491,-269.36940336,0.00021712,2]
[358684688,1745367040503,-613.56109532,0.00021712,2]
[358684689,1745367040514,-613.56109532,0.00021712,2]
[358684691,1745367040524,-613.56109532,0.00021712,2]
[358684692,1745367040534,-613.56109532,0.00021712,2]
[358684693,1745367040544,-613.56109532,0.00021712,2]
[358684694,1745367040555,-613.56109532,0.00021712,2]
[358684695,1745367040566,-613.56109532,0.00021712,2]
[358684696,1745367040576,-613.56109532,0.00021712,2]
[358684697,1745367040586,-613.56109532,0.00021712,2]
[358684699,1745367040597,-613.56109532,0.00021712,2]
[358684700,1745367040607,-613.56109532,0.00021712,2]
[358684701,1745367040617,-613.56109532,0.00021712,2]
[358684702,1745367040626,-613.56109532,0.00021712,2]
[358684703,1745367040636,-613.56109532,0.00021712,2]
[358684704,1745367040646,-613.56109532,0.00021712,2]
[358684705,1745367040657,-613.56109532,0.00021712,2]
[358684707,1745367040667,-613.56109532,0.00021712,2]
[358684709,1745367040676,-613.56109532,0.00021712,2]
[358684710,1745367040687,-613.56109532,0.00021712,2]
[358684711,1745367040697,-613.56109532,0.00021712,2]
[358684712,1745367040708,-613.56109532,0.00021712,2]
[358684713,1745367040719,-300.0,0.00021712,2]
[358684714,1745367040728,-300.0,0.00021712,2]
[358684716,1745367040739,-154.3346708,0.00021713,2]
[358684717,1745367040748,-415.84277847,0.00021713,2]
[358684718,1745367040758,-500.0,0.00021713,2]
[358684719,1745367040769,-26154.71819827,0.00021714,2]
[358684720,1745367040782,-1613.0,0.00021714,2]
[358686642,1745368073914,451.07056716,0.00018,2]
[358686646,1745368099409,1489.56442766,0.000125,2]
[358686678,1745368232032,-1000.0,0.0002061,2]
[358686679,1745368232043,-707.46,0.0002099,3]
[358686680,1745368232053,-300.0,0.00020999,2]
[358686682,1745368232062,-300.0,0.00020999,2]
[358686684,1745368232071,-231.27781403,0.00020999,2]
[358686686,1745368232081,-500.0,0.00020999,2]
[358686688,1745368232090,-14.26218597,0.00020999,2]
[358686690,1745368232102,-537.21595774,0.00020999,2]
[358686692,1745368232115,-163.53055453,0.00020999,2]
[358686694,1745368232125,-361.16613468,0.00020999,2]
[358686705,1745368238191,-353.84256356,0.00020999,2]
[358686706,1745368238201,-715.00869824,0.00020999,2]
[358686707,1745368238211,-715.00869824,0.00020999,2]
[358686708,1745368238220,-715.00869824,0.00020999,2]
[358686709,1745368238231,-239.73250384,0.00020999,2]
[358686710,1745368238298,-475.2761944,0.00020999,2]
[358686711,1745368238308,-169.3582937,0.00020999,2]
[358686712,1745368238320,-545.65040454,0.00020999,2]
[358686713,1745368238329,-606.34959546,0.00020999,2]
[358686714,1745368238340,-108.65910278,0.00020999,2]
[358686715,1745368238350,-715.00869824,0.00020999,2]
[358686716,1745368238359,-715.00869824,0.00020999,2]
[358686717,1745368238368,-715.00869824,0.00020999,2]
[358686718,1745368238380,-715.00869824,0.00020999,2]
[358686719,1745368238390,-715.00869824,0.00020999,2]
[358686720,1745368238400,-715.00869824,0.00020999,2]
[358686721,1745368238409,-715.00869824,0.00020999,2]
[358686722,1745368238419,-715.00869824,0.00020999,2]
[358686723,1745368238429,-715.00869824,0.00020999,2]
[358686724,1745368238439,-715.00869824,0.00020999,2]
[358686726,1745368238449,-715.00869824,0.00020999,2]
[358686727,1745368238459,-715.00869824,0.00020999,2]
[358686729,1745368238470,-715.00869824,0.00020999,2]
[358686730,1745368238480,-522.41177421,0.00020999,2]
[358686756,1745368240440,-192.59692403,0.00020999,2]
[358686757,1745368240451,-715.00869824,0.00020999,2]
[358686758,1745368240462,-715.00869824,0.00020999,2]
[358686759,1745368240472,-715.00869824,0.00020999,2]
[358686760,1745368240483,-715.00869824,0.00020999,2]
[358686761,1745368240493,-715.00869824,0.00020999,2]
[358686762,1745368240502,-715.00869824,0.00020999,2]
[358686763,1745368240512,-715.00869824,0.00020999,2]
[358686764,1745368240521,-715.00869824,0.00020999,2]
[358686766,1745368240532,-715.00869824,0.00020999,2]
[358686767,1745368240542,-715.00869824,0.00020999,2]
[358686768,1745368240552,-715.00869824,0.00020999,2]
[358686769,1745368240562,-715.00869824,0.00020999,2]
[358686770,1745368240573,-715.00869824,0.00020999,2]
[358686771,1745368240583,-715.00869824,0.00020999,2]
[358686772,1745368240593,-715.00869824,0.00020999,2]
[358686773,1745368240603,-715.00869824,0.00020999,2]
[358686774,1745368240613,-715.00869824,0.00020999,2]
[358686775,1745368240624,-715.00869824,0.00020999,2]
[358686776,1745368240634,-715.00869824,0.00020999,2]
[358686777,1745368240644,-715.00869824,0.00020999,2]
[358686778,1745368240654,-715.00869824,0.00020999,2]
[358686779,1745368240664,-715.00869824,0.00020999,2]
[358686780,1745368240674,-715.00869824,0.00020999,2]
[358686781,1745368240684,-715.00869824,0.00020999,2]
[358686782,1745368240694,-715.00869824,0.00020999,2]
[358686783,1745368240704,-715.00869824,0.00020999,2]
[358686784,1745368240714,-715.00869824,0.00020999,2]
[358686785,1745368240725,-715.00869824,0.00020999,2]
[358686786,1745368240734,-715.00869824,0.00020999,2]
[358686787,1745368240744,-715.00869824,0.00020999,2]
[358686788,1745368240754,-715.00869824,0.00020999,2]
[358686789,1745368240764,-715.00869824,0.00020999,2]
[358686790,1745368240773,-715.00869824,0.00020999,2]
[358686791,1745368240783,-715.00869824,0.00020999,2]
[358686792,1745368240793,-368.98189592,0.00020999,2]
[358686793,1745368240806,-346.02680232,0.00020999,2]
[358686794,1745368240819,-715.00869824,0.00020999,2]
[358686795,1745368240828,-715.00869824,0.00020999,2]
[358686796,1745368240837,-715.00869824,0.00020999,2]
[358686797,1745368240847,-715.00869824,0.00020999,2]
[358686798,1745368240859,-715.00869824,0.00020999,2]
[358686799,1745368240868,-691.17507495,0.00020999,2]
[358686800,1745368240880,-691.17507495,0.00020999,2]
[358686801,1745368240890,-691.17507495,0.00020999,2]
[358686802,1745368240901,-691.17507495,0.00020999,2]
[358686803,1745368240910,-691.17507495,0.00020999,2]
[358686804,1745368240920,-691.17507495,0.00020999,2]
[358686805,1745368240930,-691.17507495,0.00020999,2]
[358686806,1745368240940,-691.17507495,0.00020999,2]
[358686807,1745368240949,-691.17507495,0.00020999,2]
[358686808,1745368240960,-691.17507495,0.00020999,2]
[358686809,1745368240969,-691.17507495,0.00020999,2]
[358686810,1745368240979,-691.17507495,0.00020999,2]
[358686811,1745368240989,-691.17507495,0.00020999,2]
[358686812,1745368240999,-691.17507495,0.00020999,2]
[358686813,1745368241008,-691.17507495,0.00020999,2]
[358686814,1745368241017,-691.17507495,0.00020999,2]
[358686815,1745368241027,-691.17507495,0.00020999,2]
[358686816,1745368241037,-691.17507495,0.00020999,2]
[358686817,1745368241046,-691.17507495,0.00020999,2]
[358686818,1745368241056,-691.17507495,0.00020999,2]
[358686819,1745368241066,-691.17507495,0.00020999,2]
[358686820,1745368241075,-691.17507495,0.00020999,2]
[358686821,1745368241085,-691.17507495,0.00020999,2]
[358686822,1745368241095,-691.17507495,0.00020999,2]
[358686823,1745368241106,-691.17507495,0.00020999,2]
[358686824,1745368241116,-691.17507495,0.00020999,2]
[358686825,1745368241127,-691.17507495,0.00020999,2]
[358686826,1745368241137,-32726.6988977,0.00021,2]
[358686833,1745368243331,-4027.75852647,0.00021,2]
[358686834,1745368243342,-1454.07019349,0.00021,2]
[358686841,1745368245941,-16111.736429,0.00021,2]
[358686842,1745368245996,-256.808065,0.00021,2]
[358686843,1745368246008,-4850.91746335,0.00021,2]
[358686875,1745368982940,250.0,0.0002001,2]
[358686877,1745369038910,540.0,0.0002,2]
[358686903,1745369432270,-1000.0,0.000208,2]
[358686906,1745369432284,-1000.0,0.000208,3]
[358686908,1745369432296,-600.0,0.00020898,2]
[358686910,1745369432308,-1000.0,0.00020899,2]
[358686913,1745369432320,-172.5427825,0.00020899,2]
[358686960,1745369438310,-981.88026558,0.00020899,2]
[358686961,1745369438341,-752.55185998,0.00020899,2]
[358686962,1745369438364,-2561.80641442,0.00020899,2]
[358686973,1745369440472,-2155.49348543,0.00020899,2]
[358686974,1745369440486,-500.0,0.00020899,2]
[358686975,1745369440501,-167.07777974,0.00020899,2]
[358686976,1745369440515,-500.0,0.00020899,2]
[358686978,1745369440529,-500.0,0.00020899,2]
[358686980,1745369440542,-500.0,0.00020899,2]
[358686981,1745369440555,-415.77431581,0.00020899,2]
[358686983,1745369440566,-500.0,0.00020899,2]
[358686984,1745369440577,-500.0,0.00020899,2]
[358686986,1745369440588,-344.56829916,0.00020899,2]
[358686987,1745369440599,-500.0,0.00020899,2]
[358686988,1745369440611,-500.0,0.00020899,2]
[358686989,1745369440623,-500.0,0.00020899,2]
[358686992,1745369440637,-500.0,0.00020899,2]
[358686993,1745369440653,-500.0,0.00020899,2]
[358686994,1745369440668,-500.0,0.00020899,2]
[358686995,1745369440681,-241.9688423,0.00020899,2]
[358686996,1745369440695,-500.0,0.00020899,2]
[358686997,1745369440707,-500.0,0.00020899,2]
[358686998,1745369440717,-500.0,0.00020899,2]
[358686999,1745369440728,-500.0,0.00020899,2]
[358687000,1745369440741,-500.0,0.00020899,2]
[358687001,1745369440753,-500.0,0.00020899,2]
[358687002,1745369440765,-500.0,0.00020899,2]
[358687003,1745369440776,-500.0,0.00020899,2]
[358687004,1745369440788,-500.0,0.00020899,2]
[358687005,1745369440799,-500.0,0.00020899,2]
[358687006,1745369440810,-500.0,0.00020899,2]
[358687007,1745369440822,-500.0,0.00020899,2]
[358687008,1745369440833,-500.0,0.00020899,2]
[358687009,1745369440844,-500.0,0.00020899,2]
[358687010,1745369440856,-500.0,0.00020899,2]
[358687011,1745369440867,-500.0,0.00020899,2]
[358687012,1745369440881,-500.0,0.00020899,2]
[358687013,1745369440893,-500.0,0.00020899,2]
[358687014,1745369440905,-204.95203324,0.00020899,2]
[358687015,1745369440917,-500.0,0.00020899,2]
[358687016,1745369440930,-79524.65374647,0.000209,2]
[358687040,1745369443359,-366.45182833,0.000209,2]
[358687055,1745369446131,-4845.39638205,0.000209,2]
[358687058,1745369446289,-5933.58288788,0.000209,2]
[358687059,1745369446305,-37118.63574751,0.000209,2]
[358687067,1745369848896,3910.2373439,0.00019899,2]
[358687347,1745370632413,-160.0,0.00020593,2]
[358687349,1745370632423,-1000.0,0.000206,2]
[358687351,1745370632433,-1690.67758265,0.00020699,2]
[358687353,1745370632443,-303.43263409,0.000207,2]
[358687355,1745370632453,-500.0,0.00020773,2]
[358687357,1745370632462,-300.0,0.00020798,2]
[358687359,1745370632472,-300.0,0.00020798,2]
[358687360,1745370632482,-466.95444581,0.00020799,2]
[358687361,1745370632492,-500.0,0.00020799,2]
[358687363,1745370632502,-500.0,0.00020799,2]
[358687364,1745370632514,-500.0,0.00020799,2]
[358687366,1745370632524,-500.0,0.00020799,2]
[358687369,1745370632533,-500.0,0.00020799,2]
[358687371,1745370632543,-322.77935996,0.00020799,2]
[358687373,1745370632552,-449.9467036,0.00020799,2]
[358687375,1745370632562,-500.0,0.00020799,2]
[358687377,1745370632571,-333.02773801,0.00020799,2]
[358687378,1745370632580,-500.0,0.00020799,2]
[358687380,1745370632590,-500.0,0.00020799,2]
[358687383,1745370632602,-500.0,0.00020799,2]
[358687384,1745370632612,-500.0,0.00020799,2]
[358687386,1745370632621,-500.0,0.00020799,2]
[358687388,1745370632631,-500.0,0.00020799,2]
[358687390,1745370632640,-500.0,0.00020799,2]
[358687392,1745370632652,-500.0,0.00020799,2]
[358687393,1745370632662,-500.0,0.00020799,2]
[358687395,1745370632673,-500.0,0.00020799,2]
[358687397,1745370632683,-500.0,0.00020799,2]
[358687399,1745370632692,-500.0,0.00020799,2]
[358687400,1745370632701,-500.0,0.00020799,2]
[358687401,1745370632710,-500.0,0.00020799,2]
[358687402,1745370632720,-500.0,0.00020799,2]
[358687404,1745370632729,-500.0,0.00020799,2]
[358687406,1745370632739,-500.0,0.00020799,2]
[358687407,1745370632748,-169.05941768,0.00020799,2]
[358687408,1745370632758,-500.0,0.00020799,2]
[358687409,1745370632770,-500.0,0.00020799,2]
[358687411,1745370632779,-500.0,0.00020799,2]
[358687413,1745370632788,-48621.49688356,0.000208,2]
[358687454,1745370638582,-27475.70582109,0.000208,2]
[358687455,1745370638595,-15074.56858948,0.000208,2]
[358687456,1745370638654,-946.37722602,0.000208,2]
[358687457,1745370638666,-4992.65182126,0.000208,2]
[358687458,1745370638678,-399.82719863,0.000208,2]
[358687480,1745370640762,-482.02195921,0.000208,2]
[358687481,1745370640781,-2624.45810116,0.000208,2]
[358687482,1745370640822,-1070.11454301,0.000208,2]
[358687483,1745370640835,-438.2879126,0.000208,2]
[358687484,1745370640882,-760.70198306,0.000208,2]
[358687485,1745370640895,-100116.64798267,0.000208,2]
[358687486,1745370640907,-1829.56000003,0.000208,2]
[358687487,1745370640919,-791.3323053,0.000208,2]
[358687488,1745370640932,-1576.32041287,0.000208,2]
[358687528,1745370643615,-847.92286168,0.000208,2]
[358687529,1745370643628,-644.95453371,0.000208,2]
[358687531,1745370644621,-71243.01534742,0.000208,2]
[358687544,1745370646439,-255.13200005,0.000208,2]
[358687545,1745370646456,-28011.98188299,0.000208,2]
[358687546,1745370646499,-8480.86061818,0.000208,2]
[358687547,1745370646511,-14749.9999995,0.000208,2]
[358687548,1745370646527,-25875.29903025,0.000208,2]
[358687615,1745371832654,-296.102504,0.00020086,2]
[358687617,1745371832665,-185.53659146,0.00020495,2]
[358687619,1745371832675,-171.19814605,0.0002079,2]
[358687621,1745371832685,-544.66,0.0002089,3]
[358687623,1745371832694,-300.0,0.00020898,2]
[358687625,1745371832704,-321.0,0.00020898,2]
[358687627,1745371832713,-10261.36535989,0.00020899,2]
[358687629,1745371832725,-500.5787,0.00020899,2]
[358687630,1745371832737,-500.51600012,0.00020899,2]
[358687661,1745371838761,-21090.99712771,0.00020899,2]
[358687670,1745371838844,-4261.67175556,0.00020899,2]
[358687673,1745371838856,-1020.0,0.00020899,2]
[358687675,1745371838868,-570.63871289,0.00020899,2]
[358687677,1745371838879,-792.2,0.00020899,2]
[358687679,1745371838891,-4754.49091908,0.00020899,2]
[358687681,1745371838901,-500.0,0.00020899,2]
[358687683,1745371838911,-187.11179946,0.00020899,2]
[358687685,1745371838921,-500.0,0.00020899,2]
[358687686,1745371838930,-500.0,0.00020899,2]
[358687687,1745371838940,-279.83621333,0.00020899,2]
[358687693,1745371841343,-220.16378667,0.00020899,2]
[358687694,1745371841354,-500.0,0.00020899,2]
[358687695,1745371841363,-500.0,0.00020899,2]
[358687696,1745371841373,-500.0,0.00020899,2]
[358687697,1745371841383,-300.86878452,0.00020899,2]
[358687698,1745371841393,-500.0,0.00020899,2]
[358687699,1745371841403,-500.0,0.00020899,2]
[358687700,1745371841413,-500.0,0.00020899,2]
[358687701,1745371841423,-500.0,0.00020899,2]
[358687702,1745371841433,-500.0,0.00020899,2]
[358687703,1745371841443,-500.0,0.00020899,2]
[358687704,1745371841453,-315.22194332,0.00020899,2]
[358687705,1745371841463,-236.73002601,0.00020899,2]
[358687732,1745371843840,-263.26997399,0.00020899,2]
[358687733,1745371843850,-500.0,0.00020899,2]
[358687734,1745371843860,-500.0,0.00020899,2]
[358687735,1745371843869,-500.0,0.00020899,2]
[358687736,1745371843880,-500.0,0.00020899,2]
[358687737,1745371843890,-3129.54508208,0.000209,2]
[358687750,1745371846719,-25532.48407576,0.000209,2]
[358687751,1745371846732,-28491.12180796,0.000209,2]
[358687752,1745371846744,-12058.88725458,0.000209,2]
[358687762,1745372041927,200000.0,0.0002,2]
[358687763,1745372042619,300.0,0.00019999,2]
[358687767,1745372280303,6772.5508653,0.0001989,2]
[358687768,1745372298019,1000.0,0.00025,120]
[358687769,1745372310771,153.027,0.0002001,2]
[358687776,1745372654058,2000.978293,0.00025,120]
[358687799,1745372912142,4865.1872456,0.00019798,2]
[358687800,1745373031721,-817.5247733,0.00020118,2]
[358687801,1745373031732,-298.9687721,0.00020218,2]
[358687802,1745373031742,-2757.00382333,0.00020772,2]
[358687803,1745373031752,-1901.347766,0.00020796,2]
[358687804,1745373031762,-300.0,0.00020798,2]
[358687805,1745373031772,-300.0,0.00020798,2]
[358687806,1745373031781,-300.0,0.00020798,2]
[358687807,1745373031791,-975.34456652,0.00020799,2]
[358687808,1745373031801,-16337.44666633,0.00020799,2]
[358687809,1745373031812,-230.32361667,0.00020799,2]
[358687810,1745373031822,-500.0,0.00020799,2]
[358687811,1745373031832,-500.0,0.00020799,2]
[358687812,1745373031842,-500.0,0.00020799,2]
[358687813,1745373031852,-500.0,0.00020799,2]
[358687814,1745373031862,-500.0,0.00020799,2]
[358687815,1745373031872,-500.0,0.00020799,2]
[358687816,1745373031882,-500.0,0.00020799,2]
[358687817,1745373031892,-545.8897878,0.00020799,2]
[358687818,1745373031902,-500.0,0.00020799,2]
[358687819,1745373031912,-372.6859302,0.00020799,2]
[358687820,1745373031921,-44951.11467135,0.000208,2]
[358687821,1745373031938,-3186.1115683,0.000208,2]
[358687822,1745373031951,-2005.5357837,0.000208,2]
[358687823,1745373031962,-1006.932801,0.000208,2]
[358687824,1745373031975,-501.8119707,0.000208,2]
[358687825,1745373031987,-504.73540188,0.000208,2]
[358687826,1745373031999,-17635.74837638,0.000208,2]
[358687828,1745373032011,-159634.14200088,0.000208,2]
[358687830,1745373032024,-65512.34114919,0.000208,2]
[358687831,1745373032036,-418.88,0.000208,2]
[358687856,1745373038114,-1610.89906974,0.000208,2]
[358687857,1745373038128,-73031.74720688,0.000208,2]
[358687858,1745373038139,-2757.00382333,0.00020851,2]
[358687859,1745373038149,-1592.88472637,0.00020873,2]
[358687860,1745373038159,-2757.00382333,0.0002093,2]
[358687861,1745373038170,-501.18520035,0.00020973,2]
[358687862,1745373038180,-500.0,0.00020973,2]
[358687863,1745373038190,-500.0,0.00020973,2]
[358687864,1745373038200,-500.0,0.00020973,2]
[358687866,1745373038210,-500.0,0.00020973,2]
[358687867,1745373038219,-500.0,0.00020973,2]
[358687868,1745373038229,-500.0,0.00020973,2]
[358687869,1745373038239,-500.0,0.00020973,2]
[358687870,1745373038249,-500.0,0.00020973,2]
[358687871,1745373038259,-500.0,0.00020973,2]
[358687872,1745373038269,-500.0,0.00020973,2]
[358687873,1745373038279,-500.0,0.00020973,2]
[358687874,1745373038288,-500.0,0.00020973,2]
[358687875,1745373038298,-500.0,0.00020973,2]
[358687876,1745373038308,-509.16953182,0.00020973,2]
[358687877,1745373038318,-500.0,0.00020973,2]
[358687878,1745373038328,-501.34555104,0.00020973,2]
[358687879,1745373038338,-500.0,0.00020973,2]
[358687880,1745373038348,-500.0,0.00020973,2]
[358687881,1745373038358,-500.0,0.00020973,2]
[358687882,1745373038368,-185.866057,0.00020973,2]
[358687883,1745373038378,-501.01539603,0.00020973,2]
[358687884,1745373038388,-500.0,0.00020973,2]
[358687885,1745373038402,-588.19778783,0.00020973,2]
[358687886,1745373038412,-500.0,0.00020973,2]
[358687887,1745373038422,-500.0,0.00020973,2]
[358687888,1745373038433,-300.0,0.00020973,2]
[358687889,1745373038444,-500.0,0.00020973,2]
[358687890,1745373038454,-500.0,0.00020973,2]
[358687891,1745373038463,-4309.82454379,0.0002099,2]
[358687892,1745373038475,-361438.93523258,0.00021,2]
[358687965,1745373040303,-59984.09398082,0.00021,2]
[358688490,1745373045819,-5075.58570483,0.00021,2]
[358688497,1745373045874,-18973.39550676,0.00021,2]
[358688499,1745373045885,-336.29467469,0.00021,2]
[358688501,1745373045894,-1699.0,0.00021,2]
[358688503,1745373045904,-1645.0,0.00021,2]
[358688505,1745373045914,-96.71196923,0.00021009,2]
[358689495,1745373056533,835.29174131,0.000189,2]
[358690115,1745373299704,204.92625358,6.8e-07,2]
[358690116,1745373299814,204.92625358,6.5e-07,2]
[358690117,1745373300919,363.6145766,0.00018023,2]
[358690118,1745373301254,363.6145766,0.00018272,2]
[358690119,1745373301609,363.6145766,0.00018572,2]
[358690120,1745373301922,363.6145766,0.00018704,2]
[358690121,1745373302282,363.6145766,0.00019128,2]
[358690122,1745373302621,363.6145766,0.00019417,2]
[358690123,1745373303106,363.6145766,0.00019611,2]
[358690124,1745373303253,229.43,0.0002001,2]
[358690125,1745373303283,363.6145766,0.00019738,2]
[358690126,1745373304575,87390.74671504,0.0002001,2]
[358690127,1745373304610,200.0,0.0002001,2]
[358690128,1745373308061,58244.8115612,0.00025,120]
[358690129,1745373310865,170.85145097,0.0002001,2]
[358690130,1745373330407,204.92625357,6.8e-07,2]
[358690131,1745373357733,2757.25002598,0.000189,2]
[358690132,1745373483408,417.22754797,0.00019992,2]
[358690136,1745373603116,8069.43707439,0.0002001,2]
[358690137,1745373632911,258.7236736,6.8e-07,2]
[358690138,1745373657652,2173.0,0.0002,2]
[358690139,1745373659247,3499.81783224,0.000189,2]
[358690142,1745373748913,160.0,0.0002,3]
[358690143,1745373807180,285.60287909,0.00019355,2]
[358690144,1745373807486,285.60287909,0.00019482,2]
[358690145,1745373807807,285.60287909,0.00019773,2]
[358690147,1745374059691,160.0,0.0002,3]
[358690166,1745374139492,196.5665405,0.00019675,2]
[358690249,1745374173066,306.64956632,0.00019964,2]
[358690252,1745374213222,2252.45085283,0.00019964,2]
[358690253,1745374225773,5719.37423947,0.00025,120]
[358690265,1745374231951,-900.0,0.00020062,2]
[358690267,1745374231962,-19403.90740377,0.00020063,2]
[358690269,1745374231974,-4310.19507793,0.00020063,2]